Cogmind - Beta 17.1 @@@ ROGUE MODE // 2026.09.13 @ 16:17:49 Player: stixxx Result: Destroyed by S-10 Pest with Light Assault Rifle Performance ------------- Evolutions (0) 0 Regions Visited (2) 400 Robots Destroyed (8) 40 Value Destroyed (226) 226 Prototype IDs (2) 40 Alien Tech Used (0) 0 Bonus (0) 0 TOTAL SCORE: 706 Bonus ------- None Cogmind --------- Core Integrity 0/250 Matter 62/300 Energy 100/100 System Corruption 0% Temperature Cool (0) Movement Core (700) Ox13 Location -10/Mines Parts ------- > --- POWER (1) -------- (None) > --- PROPULSION (2) --- (None) > --- UTILITY (2) ------ High-capacity Storage Unit > --- WEAPON (2) ------- (None) > --- INVENTORY (20) --- Ion Engine Light Nuclear Core Aluminum Leg Structural Scanner Targeting Computer Light Assault Rifle Welding Torch Peak State ------------ > --- POWER ------------ Ion Engine > --- PROPULSION ------- Wheel Wheel > --- UTILITY ---------- High-capacity Storage Unit Core Shielding > --- WEAPON ----------- Assault Rifle Assault Rifle > --- INVENTORY -------- Ion Engine Light Nuclear Core Aluminum Leg Structural Scanner Targeting Computer Light Assault Rifle Grenade Launcher Welding Torch [Rating: 8] Favorites ----------- Power Ion Engine Engine Ion Engine Propulsion Aluminum Leg Leg Aluminum Leg Wheel Wheel Utility High-capacity Storage Unit Device Structural Scanner Storage High-capacity Storage Unit Protection Core Shielding Weapon Assault Rifle Energy Gun Medium Laser Ballistic Gun Assault Rifle Launcher Grenade Launcher Build | -11 -10 -10 ------- Run | Yrd Mat Min Slots Evolved . | . . . Power . | . . . Propulsion . | . . . Utility . | . . . Weapon . | . . . Parts Attached 16 | 7 7 2 Power 3 | 2 . 1 Engine 3 | 2 . 1 Core . | . . . Reactor . | . . . Propulsion 4 | 2 2 . Treads . | . . . Leg 2 | 2 . . Wheel 2 | . 2 . Hover . | . . . Flight . | . . . Utility 3 | . 3 . Device 1 | . 1 . Storage 1 | . 1 . Processor . | . . . Hackware . | . . . Protection 1 | . 1 . Artifact . | . . . Weapon 6 | 3 2 1 Energy Gun 1 | 1 . . Energy Cannon . | . . . Ballistic Gun 4 | 2 2 . Ballistic Cannon . | . . . Launcher 1 | . . 1 Special Weapon . | . . . Impact Weapon . | . . . Slashing Weapon . | . . . Piercing Weapon . | . . . Special Melee Weapon . | . . . Unidentified Prototypes . | . . . Parts Lost 8 | . 1 7 Power 1 | . . 1 Propulsion 3 | . 1 2 Utility 1 | . . 1 Weapon 3 | . . 3 Highest Loss Streak 7 | . 1 7 To Critical Strikes . | . . . Average Backups 5 | 2 5 7 Power . | . . 1 Propulsion 1 | 1 1 1 Utility 1 | . 1 2 Weapon 1 | . 1 1 Tool/Special . | . . . Unused Backups 5 | . 2 3 Power 1 | . . 1 Propulsion 1 | . 1 . Utility 1 | . . 1 Weapon 1 | . 1 . Tool/Special 1 | . . 1 Average Slot Usage (%) 87 | . 92 74 Engine 12 | . 13 9 Leg 16 | . 22 . Wheel 8 | . 4 18 Device 6 | . 8 . Storage 11 | . 11 14 Protection 4 | . 2 11 Ballistic Gun 24 | . 27 17 Peak Build Rating 8 | 5 7 8 Average Rating 5 | 3 6 5 On Entrance 4 | . 5 7 Avg Prop Armor Cover (%) . | . . . Naked Turns . | . . . Heaviest Build 50 | 8 50 50 Greatest Support 20 | 20 20 20 Greatest Overweight (x) 16 | . 4 16 Average Overweight (x) 1 | . 1 2 Largest Inventory Capacity 20 | 5 20 20 Average Capacity 16 | 5 17 20 Most Carried 8 | 5 8 8 Average Carried 5 | 2 5 7 Final Capacity 20 | 5 20 20 Final Carried 7 | 4 6 7 Class Distribution -------------------- 100% | Mutant Dominant Class ---------------- Mutant | -10/Materials Mutant | -10/Mines Resources | -11 -10 -10 ----------- Run | Yrd Mat Min Matter Collected 288 | 121 63 104 Remotely . | . . . Salvage Created 214 | 33 47 134 Parts 14 | 3 5 6 Haulers Intercepted . | . . . Recyclers Shooed . | . . . Parts Field Recycled . | . . . Retrieved Matter . | . . . Parts Self-Destructed . | . . . Prevented . | . . . Parts Restored . | . . . Kills | -11 -10 -10 ------- Run | Yrd Mat Min Combat Hostiles Destroyed 8 | 1 3 4 Guns 6 | 1 3 2 AOE 2 | . . 2 Classes Destroyed 2 | 1 1 . Swarmer 3 | . 3 . Grunt 5 | 1 . 4 Best Kill Streak 2 | 1 2 2 Combat Bots Only 2 | 1 2 2 Max Kills in Single Turn 1 | 1 1 1 Gunslinging . | . . . Exploded 1 | . . 1 Melee . | . . . Uniques/NPCs Destroyed . | . . . Combat | -11 -10 -10 -------- Run | Yrd Mat Min Hostile Shots Fired 134 | 4 32 98 Missed 31 | . 4 27 Hits 103 | 4 28 71 Projectile 103 | 4 28 71 Critical Strikes 2 | . 1 1 Damage Taken 1076 | 44 241 791 Core 257 | 12 33 212 Absorbed by Shields . | . . . Redirected to Shielding 29 | . . 29 Core Remaining (%) 95 | 95 . . Volleys Fired 36 | 3 13 20 Largest 2 | 2 2 2 Hottest 40 | 40 40 40 Shots Fired 61 | 6 26 29 Gun 56 | 6 26 24 Cannon . | . . . Launcher 5 | . . 5 Special . | . . . Kinetic 56 | 6 26 24 Thermal . | . . . Explosive 5 | . . 5 Electromagnetic . | . . . Robot Hit Streak 5 | 5 4 5 Robot Miss Streak 4 | 1 4 4 Penetration Max . | . . . Secondary Targets 1 | . . 1 Max Gunslinging Chain 1 | . . 1 Shots Hit Robots 34 | 5 11 18 Core Hits 18 | 2 5 11 Critical Kills . | . . . Critical Parts Destroyed . | . . . Critical Strikes . | . . . Melee Attacks . | . . . Impact . | . . . Slashing . | . . . Piercing . | . . . Sneak Attacks . | . . . Combat Hostiles . | . . . Follow-up Attacks . | . . . Damage Inflicted 613 | 51 80 482 Guns 328 | 51 80 197 Cannons . | . . . Explosions 285 | . . 285 Melee . | . . . Ramming . | . . . Kinetic 328 | 51 80 197 Thermal . | . . . Explosive 285 | . . 285 Electromagnetic . | . . . Impact . | . . . Slashing . | . . . Piercing . | . . . Highest Corruption . | . . . Average Corruption . | . . . Corruption Purged . | . . . Corruption Blocked . | . . . Overload Shots . | . . . Overflow Damage . | . . . Projectiles . | . . . Explosions . | . . . Melee . | . . . Knockbacks . | . . . Impact . | . . . Kinetic . | . . . Secondary . | . . . Self-Inflicted Damage . | . . . Shots . | . . . Rammed . | . . . Targets Rammed . | . . . Kicked . | . . . Crushed . | . . . Highest Temperature 10 | 6 . 10 Average Temperature 4 | 6 . 4 Received Heat Transfer 327 | 24 . 303 Siege Activations . | . . . Martial Activations . | . . . Shielding Activations . | . . . Robots Disrupted . | . . . Combat Hostiles . | . . . Robots Corrupted . | . . . Combat Hostiles . | . . . Parts Fried . | . . . Impact Corruptions . | . . . Robots Melted . | . . . Combat Hostiles . | . . . Parts Melted . | . . . Heat Transferred . | . . . Parts Sabotaged . | . . . Parts Stolen . | . . . Parts Stripped . | . . . Power Chain Reactions . | . . . Alert | -11 -10 -10 ------- Run | Yrd Mat Min Maximum Alert Level . | . . . Low Security (%) 100 | 100 100 100 Level 1 . | . . . Level 2 . | . . . Level 3 . | . . . Level 4 . | . . . Level 5 . | . . . High Security . | . . . Max Security . | . . . Peak Influence 67 | 20 67 60 Initial 10 | . 6 10 Average 14 | 4 12 24 Influence Increases 237 | 20 101 116 Destroy 0b10 Robot/C 160 | 20 60 80 Destroy Leader 30 | . 10 20 Destroy Structure 17 | . 1 16 Lose Combat Pursuer 30 | . 30 . Influence Decreases 231 | 10 84 137 Entered New Map 21 | . 4 17 Time Decay 160 | 10 70 80 Lost Part 50 | . 10 40 Squads Dispatched 1 | . 1 . Investigation . | . . . Extermination . | . . . Reinforcement 1 | . 1 . Assault . | . . . Garrison . | . . . Intercept . | . . . Searches Triggered . | . . . Construction Impeded . | . . . Haulers Reinforced . | . . . Active Scanning Responses . | . . . Cargo Convoy Interrupts . | . . . Stealth | -11 -10 -10 --------- Run | Yrd Mat Min Distress Signals 1 | . 1 . Communications Jammed . | . . . Distress Signals . | . . . Times Spotted 16 | 1 8 7 Peak Tracking Total 5 | 1 5 3 Tactical Retreats 1 | . 1 . Traps | -11 -10 -10 ------- Run | Yrd Mat Min Traps Triggered 1 | . 1 . Indirectly . | . . . Trap Hack Attempts . | . . . Triggered . | . . . Disarmed . | . . . Reprogrammed . | . . . Reused . | . . . Traps Extracted . | . . . Installed . | . . . Triggered . | . . . Machines | -11 -10 -10 ---------- Run | Yrd Mat Min Machines Disabled . | . . . Max in Single Turn . | . . . Machines Repaired . | . . . Machines Dismantled . | . . . Machines Sabotaged . | . . . Overloaded Fab Kills . | . . . Hacking | -11 -10 -10 --------- Run | Yrd Mat Min Machines Accessed 1 | . 1 . Terminals 1 | . 1 . Fabricators . | . . . Repair Stations . | . . . Recycling Units . | . . . Scanalyzers . | . . . Garrison Access . | . . . Total Hacks 2 | . 2 . Successful 2 | . 2 . Failed . | . . . Catastrophic . | . . . Database Lockouts . | . . . Manual . | . . . Terminals 2 | . 2 . Fabricators . | . . . Repair Stations . | . . . Recycling Units . | . . . Scanalyzers . | . . . Garrison Access . | . . . Terminal Hacks 2 | . 2 . Prototype ID Bank 1 | . 1 . Zone Layout 1 | . 1 . Fabricator Hacks . | . . . Repair Station Hacks . | . . . Recycling Unit Hacks . | . . . Scanalyzer . | . . . Garrison Access Hacks . | . . . Unauthorized Hacks . | . . . Terminals . | . . . Fabricators . | . . . Repair Stations . | . . . Recycling Units . | . . . Scanalyzers . | . . . Garrison Access . | . . . Data Cores Recovered . | . . . Used . | . . . Hacking Detections . | . . . Full Trace Events . | . . . Feedback Events . | . . . Feedback Blocked . | . . . Robot Schematics Acquired . | . . . Robots Built . | . . . Authchips . | . . . Time . | . . . Total Robot Build Rating . | . . . Part Schematics Acquired . | . . . Parts Built . | . . . Authchips . | . . . Time . | . . . Total Part Build Rating . | . . . Part Studies Acquired . | . . . Parts Repaired . | . . . Time . | . . . Parts Recycled . | . . . Recycled Matter . | . . . Retrieved Matter . | . . . Retrieved Components . | . . . Parts Scanalyzed . | . . . Part Schematics Acquired . | . . . Parts Damaged . | . . . Bothacking | -11 -10 -10 ------------ Run | Yrd Mat Min Used RIF Installer . | . . . Robots Hacked . | . . . Non-combat . | . . . Combat . | . . . Robot Hacks Applied . | . . . Relay Couplers Released . | . . . Fabnet Peak Effective % . | . . . Robots Rewired . | . . . Allies Hacked . | . . . Hacks Repelled . | . . . Allies | -11 -10 -10 -------- Run | Yrd Mat Min Total Allies . | . . . Largest Group . | . . . Highest-Rated Group . | . . . Highest-Rated Ally . | . . . Total Orders . | . . . Ally Attacks . | . . . Total Damage . | . . . Kills . | . . . Allies Corrupted . | . . . Allies Melted . | . . . Intel | -11 -10 -10 ------- Run | Yrd Mat Min Active Infowar (turns) 353 | . 353 . Structural 353 | . 353 . Robot Analysis Total . | . . . Derelict Logs Recovered . | . . . Drone Launches . | . . . Drone Recoveries . | . . . Exploration | -11 -10 -10 ------------- Run | Yrd Mat Min Turns Passed 825 | 86 544 195 Spaces Moved 430 | 77 270 83 Core 53 | 47 . 6 Treads . | . . . Legs 223 | 30 193 . Wheels 154 | . 77 77 Hover . | . . . Flight . | . . . Fastest Speed 50 | 50 110 110 Average Speed 156 | 77 178 155 Slowest Speed 850 | 120 400 850 Overloaded Moves . | . . . Propulsion Burnouts . | . . . Robots Hopped . | . . . Potential Cave-ins . | . . . Cave-ins Triggered . | . . . Exploration Rate (%) 19 | 5 34 18 Regions Visited 2 Branch Regions 1 Pre-discovered Areas . | . . . Known Exits Taken . | . . . Unknown Exits Taken 2 | 1 1 . Scrap Searched . | . . . Spaces Dug . | . . . Terrain Destroyed 23 | . . 23 Melee . | . . . Projectile . | . . . AOE 23 | . . 23 Terrain Rammed . | . . . Walls Destroyed . | . . . Machines Disabled . | . . . Actions | -11 -10 -10 --------- Run | Yrd Mat Min Total 530 | 98 312 120 Wait 12 | . . 12 Move 428 | 76 269 83 Hop . | . . . Pick Up 24 | 10 12 2 Fast Attach . | . . . Attach 17 | 6 9 2 Detach 6 | 1 4 1 Swap 1 | 1 . . Drop 6 | 1 5 . Fire 36 | 3 13 20 Melee . | . . . Ram . | . . . Kick . | . . . Crush . | . . . Escape Stasis . | . . . Rewire . | . . . Trap . | . . . Miscellaneous . | . . . Route ------- -11/Scrapyard -10/Materials -10/Mines (discovered 1 exit: [*Mat]) History --------- Turn | Location | Event 2 | -11/Scrapyard | Met Revision 17 50 | -11/Scrapyard | Discovered new exit (range 8) 87 | -11/Scrapyard | Entered Materials 88 | -10/Materials | Met a group of wandering Federalists 303 | -10/Materials | Build established: Mutant 336 | -10/Materials | Discovered new exit (range 11) 631 | -10/Materials | Entered Mines 726 | -10/Mines | Discovered new exit (range 9) 787 | -10/Mines | Core integrity fell below 50% 801 | -10/Mines | Core integrity fell below 20% 825 | -10/Mines | Lost 7 parts (1p2n1u3w) 826 | -10/Mines | Destroyed by S-10 Pest with Light Assault Rifle Last Messages --------------- U-05 Engineer lays Concrete. S-10 Pest destroyed. U-05 Engineer builds a Wall. K-01 Serf collects debris. U-05 Engineer builds a Wall. K-01 Serf collects debris. U-05 Engineer lays Concrete. K-01 Serf collects debris. U-05 Engineer lays Concrete. K-01 Serf collects debris. U-05 Engineer lays Concrete. K-01 Serf collects debris. U-05 Engineer lays Concrete. The unstable cave ceiling collapses. K-01 Serf crushed by falling debris. K-01 Serf system corrupted by crushing effect. U-05 Engineer builds a Wall. K-01 Serf collects debris. U-05 Engineer builds a Wall. [Achievement: First Step to Greatness] Map ----- +----------------------------------------------------+ | | | | | ?????????????????????????????????????????????????? | | ?????????????????????????????????????????????????? | | ?????????????????????????????????????????????????? | | ?????????????????????????????????????????????????? | | ?????????????????????????????????????????????????? | | ?????????????????????????????????????????????????? | | ???????????????????????###???????????????????????? | | ???????????????????????# ???????????????????????? | | ???????????????????????# #???????????????????????? | | ???????????????????????# #???????????????????????? | | ???????????????????????# #???????????????????????? | | ?????????????????????### #???????????????????????? | | ????????????????????## #####???????????????????? | | ????????????????????# ##??????????????????? | | ????????????????????# #??????????????????? | | ????????????????????## #??????????????????? | | ?????????????????????## ##??????????????????? | | ??????????????????????### ##???????????????????? | | ????????????????????????# ##????????????????????? | | ?????????????############ #?????????????????????? | | ############?# #????#????????????????? | | # """ #?# ########## #????# ???????????????? | | # """= #?# #????????# ###??# ???????????????? | | # """ #?# #????????#@ #??# < ?????????????? | | # [ #?# #??????### #??# ??"?????????? | | # = ### #?????## #??# ?????????? | | # = #?????# #??? """ "??????????? | | # #####?????# s ###? """ ???????????? | | # #?????????## ##? """????????????? | | ############??????????## u## # ?????????????? | | ???????????????????????## k# ## #?????????????? | | ???????????????????????## r% ### ##????????????? | | ??????????????????????? u = ### ##???????????? | | ??????????????????????? #???????????? | | ??????????????????????## *%%! #???????????? | | ???????????????????????### ##= #???????????? | | ?????????????????????????? ### ##???????????? | | ?????????????????????????? #?## ###????????????? | | ?????????????????????????? #??## #??????????????? | | ?????????????????????????? ??? ??????????????? | | ?????????????????????????? ??? ?????????????? | | ?????????????????????????? ??#######????????????? | | ?????????????????????????? ?????????????????????? | | ??????????????????????????? ?????????????????????? | | ?????????????????????????????????????????????????? | | ?????????????????????????????????????????????????? | | ?????????????????????????????????????????????????? | | ?????????????????????????????????????????????????? | +----------------------------------------------------+ Best States ------------- Heat Dissipation 25 Energy Generation 10 Energy Capacity 250 Matter Stores 155 Matter Capacity 300 Sight Range 16 Terrain Scan Density 10 Core Shielding 20 Evasion (%) 55 Item Schematics ----------------- None Robot Schematics ------------------ None Fabricated ------------ Nothing Repaired ---------- Nothing Studied --------- None Alien Tech Used ----------------- None Achievements -------------- First Step to Greatness There's More Where That Came From Uninvited Guest Challenges ------------ None Game ------ Seed DefenseRocketCartridge Manual? 0 Play Time 00:39:01 Cumulative 0.5 hours Start 2026.09.13 @ 15:04:21 End 2026.09.13 @ 16:17:49 Sessions 4 Manual Loads 0 Difficulty Rogue Special Mode None Game No. 1 Rogue 1 Adventurer 0 Explorer 0 Win Type - Total 0 Types 0/0/0/0/0/0/0/0/0/0 Lore% 0 Gallery% 0 Achievement% 0 Wizard Run 0 Options --------- Layout 1 ASCII 0 Keyboard 1 Movement Numpad Keybinds 0 Fullscreen 1 Font 24/Smallcaps Map View 50x35 Zoom Use 0% Tactical HUD 0 Map Filters NONE Filters NONE Steam 1 RUN: f0015207-86d6-462e-8a54-e7962e5334e7